fUST/lending_fUST_20250108
["ID","MTS","AMOUNT","RATE_DAILY","PERIOD"]
[348055571,1736285452046,-496.48,0.00020273,3]
[348055572,1736285452055,-500.0,0.00020273,3]
[348055573,1736285452065,-500.0,0.00020273,3]
[348055574,1736285452073,-571.87,0.00020273,3]
[348055575,1736285452082,-498.31,0.00020273,3]
[348055576,1736285452091,-581.32,0.00020273,3]
[348055577,1736285452101,-500.0,0.00020273,3]
[348055578,1736285452110,-500.0,0.00020273,3]
[348055579,1736285452118,-497.65,0.00020273,3]
[348055580,1736285452127,-1332.7,0.00020273,3]
[348055581,1736285452138,-500.0,0.00020273,3]
[348055582,1736285452147,-253.24,0.00020273,3]
[348055583,1736285452156,-500.0,0.00020273,3]
[348055584,1736285452165,-500.0,0.00020273,3]
[348055585,1736285452174,-500.0,0.00020273,3]
[348055586,1736285452183,-500.0,0.00020273,3]
[348055587,1736285452192,-500.0,0.00020273,3]
[348055588,1736285452201,-500.0,0.00020273,3]
[348055589,1736285452210,-500.0,0.00020273,3]
[348055590,1736285452219,-631.88,0.00020273,3]
[348055591,1736285452228,-957.6,0.00020273,3]
[348055592,1736285452237,-500.0,0.00020273,3]
[348055593,1736285452246,-500.0,0.00020273,3]
[348055594,1736285452255,-801.7,0.00020273,3]
[348055595,1736285452264,-500.0,0.00020273,3]
[348055596,1736285452273,-453.48,0.00020273,3]
[348055597,1736285452282,-500.0,0.00020273,3]
[348055598,1736285452291,-419.84,0.00020273,3]
[348055599,1736285452299,-546.03,0.00020273,3]
[348055600,1736285452308,-500.0,0.00020273,3]
[348055601,1736285452317,-500.0,0.00020273,3]
[348055602,1736285452326,-500.0,0.00020273,3]
[348055603,1736285452335,-500.0,0.00020273,3]
[348055604,1736285452343,-645.1,0.00020273,3]
[348055605,1736285452352,-546.97,0.00020273,3]
[348055606,1736285452362,-476.2,0.00020273,3]
[348055607,1736285452371,-287.14,0.00020273,3]
[348055608,1736285452381,-2218.86,0.00020273,3]
[348055609,1736285452390,-532.06,0.00020273,3]
[348055610,1736285452400,-8359.18,0.00020273,3]
[348055611,1736285452411,-500.0,0.00020273,3]
[348055612,1736285452420,-1000.0,0.00020321,2]
[348055613,1736285452431,-3182.42,0.00020446,3]
[348055614,1736285452440,-174.020494,0.00020447,2]
[348055615,1736285452449,-500.0,0.00020547,3]
[348055616,1736285452459,-500.0,0.00020547,3]
[348055617,1736285452468,-500.0,0.00020547,3]
[348055618,1736285452477,-375.95,0.00020547,3]
[348055619,1736285452486,-500.0,0.00020547,3]
[348055620,1736285452495,-297.05,0.00020547,3]
[348055621,1736285452506,-500.0,0.00020547,3]
[348055622,1736285452515,-500.0,0.00020547,3]
[348055623,1736285452524,-500.0,0.00020547,3]
[348055624,1736285452533,-314.0,0.00020547,3]
[348055625,1736285452542,-500.0,0.00020547,3]
[348055626,1736285452552,-500.0,0.00020547,3]
[348055627,1736285452562,-1332.7,0.00020547,3]
[348055628,1736285452571,-208.55,0.00020547,3]
[348055629,1736285452580,-620.74,0.00020547,3]
[348055630,1736285452590,-500.0,0.00020547,3]
[348055631,1736285452599,-500.0,0.00020547,3]
[348055632,1736285452608,-626.0,0.00020547,3]
[348055633,1736285452617,-500.0,0.00020547,3]
[348055634,1736285452626,-500.0,0.00020547,3]
[348055635,1736285452635,-500.0,0.00020547,3]
[348055636,1736285452644,-957.6,0.00020547,3]
[348055637,1736285452654,-500.0,0.00020547,3]
[348055638,1736285452663,-581.72,0.00020547,3]
[348055639,1736285452673,-801.7,0.00020547,3]
[348055640,1736285452682,-500.0,0.00020547,3]
[348055641,1736285452691,-500.0,0.00020547,3]
[348055642,1736285452700,-546.03,0.00020547,3]
[348055643,1736285452710,-500.0,0.00020547,3]
[348055644,1736285452719,-177.83,0.00020547,3]
[348055645,1736285452729,-500.0,0.00020547,3]
[348055646,1736285452738,-500.0,0.00020547,3]
[348055647,1736285452748,-2218.86,0.00020547,3]
[348055648,1736285452757,-532.06,0.00020547,3]
[348055649,1736285452766,-8359.18,0.00020547,3]
[348055650,1736285452775,-500.0,0.00020547,3]
[348055651,1736285452785,-420.0,0.00020709,2]
[348055652,1736285452794,-3182.42,0.0002072,3]
[348055653,1736285452804,-500.0,0.00020821,3]
[348055654,1736285452813,-290.4,0.00020821,3]
[348055655,1736285452822,-620.55,0.00020821,3]
[348055656,1736285452831,-500.0,0.00020821,3]
[348055657,1736285452842,-500.0,0.00020821,3]
[348055658,1736285452852,-500.0,0.00020821,3]
[348055659,1736285452861,-500.0,0.00020821,3]
[348055660,1736285452870,-500.0,0.00020821,3]
[348055661,1736285452880,-1332.7,0.00020821,3]
[348055662,1736285452890,-500.0,0.00020821,3]
[348055663,1736285452902,-500.0,0.00020821,3]
[348055664,1736285452912,-500.0,0.00020821,3]
[348055665,1736285452921,-500.0,0.00020821,3]
[348055666,1736285452930,-500.0,0.00020821,3]
[348055667,1736285452939,-957.6,0.00020821,3]
[348055668,1736285452949,-500.0,0.00020821,3]
[348055669,1736285452959,-801.7,0.00020821,3]
[348055670,1736285452968,-500.0,0.00020821,3]
[348055671,1736285452978,-472.92,0.00020821,3]
[348055672,1736285452988,-546.03,0.00020821,3]
[348055673,1736285452999,-500.0,0.00020821,3]
[348055674,1736285453011,-500.0,0.00020821,3]
[348055675,1736285453020,-500.0,0.00020821,3]
[348055676,1736285453032,-532.06,0.00020821,3]
[348055677,1736285453042,-8359.18,0.00020821,3]
[348055678,1736285453051,-2218.86,0.00020821,3]
[348055679,1736285453060,-500.0,0.00020821,3]
[348055680,1736285453069,-3182.42,0.00020994,3]
[348055681,1736285453079,-500.0,0.00021095,3]
[348055682,1736285453088,-500.0,0.00021095,3]
[348055683,1736285453098,-613.81,0.00021095,3]
[348055684,1736285453108,-500.0,0.00021095,3]
[348055685,1736285453117,-500.0,0.00021095,3]
[348055686,1736285453127,-500.0,0.00021095,3]
[348055687,1736285453137,-1332.7,0.00021095,3]
[348055688,1736285453146,-151.28,0.00021095,3]
[348055689,1736285453156,-151.0,0.00021095,2]
[348055690,1736285453165,-500.0,0.00021095,3]
[348055691,1736285453174,-500.0,0.00021095,3]
[348055692,1736285453183,-415.52,0.00021095,3]
[348055693,1736285453193,-500.0,0.00021095,3]
[348055694,1736285453202,-957.6,0.00021095,3]
[348055695,1736285453212,-500.0,0.00021095,3]
[348055696,1736285453221,-801.7,0.00021095,3]
[348055697,1736285453230,-500.0,0.00021095,3]
[348055698,1736285453239,-546.03,0.00021095,3]
[348055699,1736285453249,-500.0,0.00021095,3]
[348055700,1736285453259,-601.22,0.00021095,3]
[348055701,1736285453268,-508.08,0.00021095,3]
[348055702,1736285453278,-532.06,0.00021095,3]
[348055703,1736285453287,-8359.18,0.00021095,3]
[348055704,1736285453296,-2218.86,0.00021095,3]
[348055705,1736285453305,-3182.42,0.00021268,3]
[348055706,1736285453316,-859.06642591,0.00021322,2]
[348055707,1736285453327,-569.03,0.00021369,3]
[348055708,1736285453337,-581.84,0.00021369,3]
[348055709,1736285453346,-500.0,0.00021369,3]
[348055710,1736285453356,-500.0,0.00021369,3]
[348055711,1736285453365,-166.97,0.00021369,3]
[348055712,1736285453374,-1332.7,0.00021369,3]
[348055713,1736285453384,-500.0,0.00021369,3]
[348055714,1736285453393,-500.0,0.00021369,3]
[348055715,1736285453404,-500.0,0.00021369,3]
[348055716,1736285453415,-957.6,0.00021369,3]
[348055717,1736285453425,-500.0,0.00021369,3]
[348055718,1736285453434,-801.7,0.00021369,3]
[348055719,1736285453446,-500.0,0.00021369,3]
[348055720,1736285453455,-546.03,0.00021369,3]
[348055721,1736285453465,-500.0,0.00021369,3]
[348055722,1736285453475,-532.06,0.00021369,3]
[348055723,1736285453484,-8359.18,0.00021369,3]
[348055724,1736285453493,-2218.86,0.00021369,3]
[348055725,1736285453503,-3182.42,0.00021542,3]
[348055726,1736285453512,-1200.0,0.00021572,2]
[348055727,1736285453521,-210.57,0.00021643,3]
[348055728,1736285453531,-500.0,0.00021643,3]
[348055729,1736285453540,-1332.7,0.00021643,3]
[348055730,1736285453549,-151.0,0.00021643,2]
[348055731,1736285453558,-295.58,0.00021643,3]
[348055732,1736285453567,-500.0,0.00021643,3]
[348055733,1736285453576,-500.0,0.00021643,3]
[348055734,1736285453586,-957.6,0.00021643,3]
[348055735,1736285453595,-500.0,0.00021643,3]
[348055736,1736285453605,-801.7,0.00021643,3]
[348055737,1736285453615,-500.0,0.00021643,3]
[348055738,1736285453625,-546.03,0.00021643,3]
[348055739,1736285453634,-500.0,0.00021643,3]
[348055740,1736285453643,-532.06,0.00021643,3]
[348055741,1736285453653,-8359.18,0.00021643,3]
[348055742,1736285453662,-153.0,0.00021755,2]
[348055743,1736285453671,-153.0,0.00021755,2]
[348055744,1736285453681,-153.0,0.00021755,2]
[348055745,1736285453690,-153.0,0.00021755,2]
[348055746,1736285453699,-153.0,0.00021755,2]
[348055747,1736285453708,-153.0,0.00021756,2]
[348055748,1736285453717,-153.0,0.00021756,2]
[348055749,1736285453726,-153.0,0.00021756,2]
[348055750,1736285453735,-153.0,0.00021756,2]
[348055751,1736285453744,-153.0,0.00021756,2]
[348055752,1736285453754,-153.0,0.00021756,2]
[348055753,1736285453763,-153.0,0.00021764,2]
[348055754,1736285453772,-153.0,0.00021764,2]
[348055755,1736285453781,-153.0,0.00021764,2]
[348055756,1736285453790,-153.0,0.00021764,2]
[348055757,1736285453799,-153.0,0.00021765,2]
[348055758,1736285453808,-153.0,0.00021765,2]
[348055759,1736285453817,-153.0,0.00021765,2]
[348055760,1736285453826,-153.0,0.00021765,2]
[348055761,1736285453835,-153.0,0.00021765,2]
[348055762,1736285453843,-153.0,0.00021765,2]
[348055763,1736285453853,-153.0,0.00021773,2]
[348055764,1736285453862,-153.0,0.00021773,2]
[348055765,1736285453871,-153.0,0.00021773,2]
[348055766,1736285453880,-153.0,0.00021773,2]
[348055767,1736285453889,-153.0,0.00021773,2]
[348055768,1736285453901,-153.0,0.00021774,2]
[348055769,1736285453913,-153.0,0.00021774,2]
[348055770,1736285453923,-153.0,0.00021774,2]
[348055771,1736285453932,-153.0,0.00021774,2]
[348055772,1736285453942,-153.0,0.00021774,2]
[348055773,1736285453951,-153.0,0.00021774,2]
[348055774,1736285453961,-153.0,0.00021782,2]
[348055775,1736285453970,-153.0,0.00021782,2]
[348055776,1736285453982,-153.0,0.00021782,2]
[348055777,1736285453991,-153.0,0.00021782,2]
[348055778,1736285454000,-153.0,0.00021783,2]
[348055779,1736285454009,-153.0,0.00021783,2]
[348055780,1736285454019,-153.0,0.00021783,2]
[348055781,1736285454028,-153.0,0.00021783,2]
[348055782,1736285454037,-153.0,0.00021783,2]
[348055783,1736285454046,-153.0,0.00021783,2]
[348055784,1736285454055,-3182.42,0.00021816,3]
[348055785,1736285454064,-623.683,0.0002182,2]
[348055786,1736285454148,-151.0,0.00021917,2]
[348055787,1736285454168,-375.19,0.00021917,3]
[348055788,1736285454178,-1390.64,0.00021917,3]
[348055789,1736285454187,-1332.7,0.00021917,3]
[348055790,1736285454196,-500.0,0.00021917,3]
[348055791,1736285454205,-500.0,0.00021917,3]
[348055792,1736285454215,-957.6,0.00021917,3]
[348055793,1736285454225,-500.0,0.00021917,3]
[348055794,1736285454234,-801.7,0.00021917,3]
[348055795,1736285454243,-500.0,0.00021917,3]
[348055796,1736285454253,-546.03,0.00021917,3]
[348055797,1736285454263,-500.0,0.00021917,3]
[348055798,1736285454272,-532.06,0.00021917,3]
[348055799,1736285454282,-8359.18,0.00021917,3]
[348055800,1736285454291,-3182.42,0.0002209,3]
[348055801,1736285454300,-502.00633006,0.00022142,8]
[348055802,1736285454310,-1390.64,0.00022191,3]
[348055803,1736285454319,-1332.7,0.00022191,3]
[348055804,1736285454329,-500.0,0.00022191,3]
[348055805,1736285454338,-500.0,0.00022191,3]
[348055806,1736285454347,-957.6,0.00022191,3]
[348055807,1736285454356,-428.78,0.00022191,3]
[348055808,1736285454365,-801.7,0.00022191,3]
[348055809,1736285454375,-500.0,0.00022191,3]
[348055810,1736285454384,-546.03,0.00022191,3]
[348055811,1736285454394,-500.0,0.00022191,3]
[348055812,1736285454403,-532.06,0.00022191,3]
[348055813,1736285454412,-8359.18,0.00022191,3]
[348055814,1736285454422,-3182.42,0.00022364,3]
[348055815,1736285454431,-151.0,0.00022465,7]
[348055816,1736285454441,-1390.64,0.00022465,3]
[348055817,1736285454451,-1332.7,0.00022465,3]
[348055818,1736285454460,-500.0,0.00022465,3]
[348055819,1736285454470,-500.0,0.00022465,3]
[348055820,1736285454479,-957.6,0.00022465,3]
[348055821,1736285454489,-801.7,0.00022465,3]
[348055822,1736285454498,-500.0,0.00022465,3]
[348055823,1736285454510,-546.03,0.00022465,3]
[348055824,1736285454519,-500.0,0.00022465,3]
[348055825,1736285454530,-532.06,0.00022465,3]
[348055826,1736285454539,-8359.18,0.00022465,3]
[348055827,1736285454548,-587.0,0.00022573,2]
[348055828,1736285454558,-3182.42,0.00022638,3]
[348055829,1736285454567,-153.729926,0.00022739,7]
[348055830,1736285454575,-153.729926,0.00022739,7]
[348055831,1736285454584,-151.0,0.00022739,7]
[348055832,1736285454594,-1332.7,0.00022739,3]
[348055833,1736285454604,-151.0,0.00022739,2]
[348055834,1736285454614,-500.0,0.00022739,3]
[348055835,1736285454624,-394.69,0.00022739,3]
[348055836,1736285454634,-957.6,0.00022739,3]
[348055837,1736285454643,-801.7,0.00022739,3]
[348055838,1736285454652,-500.0,0.00022739,3]
[348055839,1736285454662,-546.03,0.00022739,3]
[348055840,1736285454671,-500.0,0.00022739,3]
[348055841,1736285454681,-532.06,0.00022739,3]
[348055842,1736285454690,-8359.18,0.00022739,3]
[348055843,1736285454699,-172.3222895,0.00022743,2]
[348055844,1736285454709,-10323.00292438,0.0002277,2]
[348055845,1736285454719,-2000.0,0.000229,2]
[348055846,1736285454728,-3182.42,0.00022912,3]
[348055847,1736285454738,-151.0,0.00022981,7]
[348055848,1736285454747,-151.0,0.00022981,7]
[348055849,1736285454758,-153.729926,0.00022987,7]
[348055850,1736285454767,-153.729926,0.00022987,7]
[348055851,1736285454779,-153.729926,0.00022987,7]
[348055852,1736285454788,-153.729926,0.00022987,7]
[348055853,1736285454798,-153.729926,0.00022987,7]
[348055854,1736285454808,-153.729926,0.00022987,7]
[348055855,1736285454818,-153.729926,0.00022987,7]
[348055856,1736285454827,-153.729926,0.00022987,7]
[348055857,1736285454837,-153.729926,0.00022987,7]
[348055858,1736285454847,-153.729926,0.00022987,7]
[348055859,1736285454856,-153.729926,0.00022987,7]
[348055860,1736285454866,-153.729926,0.00022987,7]
[348055861,1736285454875,-153.729926,0.00022987,7]
[348055862,1736285454885,-153.729926,0.00022987,7]
[348055863,1736285454895,-153.729926,0.00022987,7]
[348055864,1736285454907,-153.729926,0.00022987,7]
[348055865,1736285454917,-153.729926,0.00022987,7]
[348055866,1736285454926,-153.729926,0.00022987,7]
[348055867,1736285454936,-151.0,0.00022987,7]
[348055868,1736285454946,-151.0,0.00022987,7]
[348055869,1736285454956,-151.0,0.00022987,7]
[348055870,1736285454965,-211.315024,0.00022987,7]
[348055871,1736285454977,-151.0,0.00022987,7]
[348055872,1736285454987,-227.964044,0.00022987,7]
[348055873,1736285454997,-151.0,0.00022987,7]
[348055874,1736285455007,-151.0,0.00022987,7]
[348055875,1736285455016,-151.0,0.00022987,7]
[348055876,1736285455026,-151.0,0.00022987,7]
[348055877,1736285455035,-151.0,0.00022987,7]
[348055878,1736285455045,-151.0,0.00022987,7]
[348055879,1736285455054,-151.0,0.00022987,7]
[348055880,1736285455064,-166.553676,0.00022987,7]
[348055881,1736285455073,-151.0,0.00022987,2]
[348055882,1736285455083,-219.941736,0.00022987,2]
[348055883,1736285455092,-20370.85161437,0.00022987,3]
[348055884,1736285455101,-6126.30817728,0.00022987,3]
[348055885,1736285455111,-9101.86153769,0.00022987,10]
[348055889,1736286407102,175.134788,0.00013973,2]
[348056551,1736286635746,-913.35635199,0.000189,2]
[348056553,1736286635756,-160.94,0.00019177,2]
[348056555,1736286635766,-300.0,0.00019177,2]
[348056557,1736286635776,-500.0,0.00019178,2]
[348056559,1736286635785,-500.0,0.00019178,2]
[348056561,1736286635795,-1392.48,0.00019178,2]
[348056563,1736286635806,-500.0,0.00019178,2]
[348056565,1736286635815,-358.23252197,0.00019178,2]
[348056567,1736286635825,-1483.26,0.00019178,2]
[348056569,1736286635834,-162.977515,0.00019178,2]
[348056572,1736286635843,-155.23,0.00019178,2]
[348056575,1736286635852,-647.12,0.000192,2]
[348056577,1736286635862,-500.0,0.00019452,3]
[348056580,1736286635872,-500.0,0.00019452,3]
[348056583,1736286635881,-1392.48,0.00019452,3]
[348056586,1736286635889,-500.0,0.00019452,3]
[348056589,1736286635899,-1483.26,0.00019452,3]
[348056592,1736286635908,-500.0,0.00019724,3]
[348056595,1736286635917,-500.0,0.00019724,3]
[348056598,1736286635927,-500.0,0.00019724,3]
[348056601,1736286635938,-500.0,0.00019724,3]
[348056604,1736286635948,-3482.99,0.00019725,3]
[348056605,1736286635958,-500.0,0.00019725,3]
[348056608,1736286635967,-500.0,0.00019725,3]
[348056610,1736286635976,-500.0,0.00019725,3]
[348056611,1736286635985,-500.0,0.00019726,3]
[348056613,1736286635995,-500.0,0.00019726,3]
[348056615,1736286636004,-1392.48,0.00019726,3]
[348056617,1736286636013,-556.85,0.00019726,3]
[348056619,1736286636023,-1483.26,0.00019726,3]
[348056621,1736286636032,-500.0,0.00019998,3]
[348056624,1736286636042,-500.0,0.00019998,3]
[348056626,1736286636051,-500.0,0.00019998,3]
[348056627,1736286636061,-265.29,0.00019998,3]
[348056629,1736286636070,-3482.99,0.00019999,3]
[348056631,1736286636080,-500.0,0.00019999,3]
[348056633,1736286636089,-346.94,0.00019999,3]
[348056635,1736286636097,-500.0,0.00019999,3]
[348056637,1736286636107,-500.0,0.0002,3]
[348056639,1736286636115,-500.0,0.0002,3]
[348056641,1736286636126,-1392.48,0.0002,3]
[348056643,1736286636135,-1483.26,0.0002,3]
[348056645,1736286636144,-500.0,0.00020272,3]
[348056647,1736286636154,-500.0,0.00020272,3]
[348056649,1736286636163,-500.0,0.00020272,3]
[348056651,1736286636172,-500.0,0.00020273,3]
[348056653,1736286636182,-500.0,0.00020273,3]
[348056655,1736286636191,-1392.48,0.00020273,3]
[348056657,1736286636200,-1483.26,0.00020273,3]
[348056659,1736286636210,-3482.99,0.00020273,3]
[348056661,1736286636220,-500.0,0.00020273,3]
[348056663,1736286636229,-500.0,0.00020273,3]
[348056665,1736286636239,-175.134788,0.00020447,2]
[348056667,1736286636248,-187.587171,0.00020521,2]
[348056669,1736286636257,-500.0,0.00020546,3]
[348056671,1736286636267,-500.0,0.00020546,3]
[348056673,1736286636276,-500.0,0.00020546,3]
[348056675,1736286636286,-500.0,0.00020547,3]
[348056677,1736286636300,-500.0,0.00020547,3]
[348056679,1736286636310,-1392.48,0.00020547,3]
[348056681,1736286636319,-1483.26,0.00020547,3]
[348056683,1736286636329,-3482.99,0.00020547,3]
[348056685,1736286636339,-500.0,0.00020547,3]
[348056687,1736286636348,-500.0,0.00020547,3]
[348056689,1736286636357,-500.0,0.0002082,3]
[348056691,1736286636366,-500.0,0.0002082,3]
[348056693,1736286636377,-500.0,0.0002082,3]
[348056695,1736286636386,-500.0,0.00020821,3]
[348056697,1736286636396,-500.0,0.00020821,3]
[348056699,1736286636406,-1392.48,0.00020821,3]
[348056701,1736286636415,-1483.26,0.00020821,3]
[348056703,1736286636424,-3482.99,0.00020821,3]
[348056705,1736286636434,-500.0,0.00020821,3]
[348056707,1736286636443,-500.0,0.00020821,3]
[348056709,1736286636453,-500.0,0.00021094,3]
[348056711,1736286636462,-500.0,0.00021094,3]
[348056713,1736286636472,-500.0,0.00021094,3]
[348056715,1736286636481,-500.0,0.00021095,3]
[348056717,1736286636490,-500.0,0.00021095,3]
[348056719,1736286636499,-1392.48,0.00021095,3]
[348056721,1736286636509,-1483.26,0.00021095,3]
[348056723,1736286636518,-3482.99,0.00021095,3]
[348056725,1736286636527,-500.0,0.00021095,3]
[348056727,1736286636536,-405.26,0.00021095,3]
[348056729,1736286636546,-500.0,0.00021368,3]
[348056731,1736286636555,-500.0,0.00021368,3]
[348056733,1736286636564,-500.0,0.00021368,3]
[348056735,1736286636573,-500.0,0.00021369,3]
[348056737,1736286636582,-500.0,0.00021369,3]
[348056739,1736286636592,-1392.48,0.00021369,3]
[348056741,1736286636602,-1483.26,0.00021369,3]
[348056743,1736286636612,-3482.99,0.00021369,3]
[348056745,1736286636623,-500.0,0.00021369,3]
[348056747,1736286636632,-465.20299211,0.00021611,2]
[348056749,1736286636642,-500.0,0.00021642,3]
[348056751,1736286636652,-500.0,0.00021642,3]
[348056753,1736286636661,-500.0,0.00021642,3]
[348056755,1736286636670,-500.0,0.00021643,3]
[348056757,1736286636679,-500.0,0.00021643,3]
[348056759,1736286636688,-1392.48,0.00021643,3]
[348056761,1736286636698,-1483.26,0.00021643,3]
[348056763,1736286636707,-3482.99,0.00021643,3]
[348056765,1736286636716,-500.0,0.00021643,3]
[348056767,1736286636725,-597.719,0.0002184,2]
[348056769,1736286636734,-1200.0,0.00021894,2]
[348056771,1736286636743,-318.24212311,0.00021916,2]
[348056773,1736286636753,-288.43899919,0.00021916,2]
[348056775,1736286636762,-500.0,0.00021916,2]
[348056777,1736286636771,-261.37922836,0.00021916,2]
[348056779,1736286636781,-299.95725869,0.00021916,2]
[348056781,1736286636790,-500.0,0.00021916,2]
[348056783,1736286636800,-500.0,0.00021916,3]
[348056785,1736286636809,-500.0,0.00021916,3]
[348056787,1736286636819,-500.0,0.00021916,3]
[348056789,1736286636829,-500.0,0.00021917,3]
[348056791,1736286636838,-500.0,0.00021917,3]
[348056793,1736286636848,-1392.48,0.00021917,3]
[348056795,1736286636857,-1483.26,0.00021917,3]
[348056797,1736286636867,-3482.99,0.00021917,3]
[348056799,1736286636877,-500.0,0.00021917,3]
[348056801,1736286636886,-352.3939785,0.00022027,2]
[348056802,1736286636895,-217.8176354,0.00022164,2]
[348056804,1736286636904,-247.8900876,0.00022164,2]
[348056806,1736286636913,-500.0,0.0002219,3]
[348056808,1736286636924,-424.9365456,0.0002219,3]
[348056810,1736286636933,-500.0,0.0002219,3]
[348056812,1736286636942,-500.0,0.00022191,3]
[348056814,1736286636951,-500.0,0.00022191,3]
[348056816,1736286636960,-1392.48,0.00022191,3]
[348056818,1736286636969,-1483.26,0.00022191,3]
[348056820,1736286636978,-3482.99,0.00022191,3]
[348056822,1736286636987,-500.0,0.00022191,3]
[348056824,1736286636997,-153.0,0.00022407,2]
[348056826,1736286637007,-153.0,0.00022407,2]
[348056828,1736286637016,-153.0,0.00022407,2]
[348056830,1736286637025,-153.0,0.00022407,2]
[348056832,1736286637035,-500.0,0.00022464,3]
[348056834,1736286637044,-320.75822685,0.00022464,3]
[348056836,1736286637053,-500.0,0.00022465,3]
[348056838,1736286637063,-500.0,0.00022465,3]
[348056840,1736286637072,-1392.48,0.00022465,3]
[348056842,1736286637081,-1483.26,0.00022465,3]
[348056844,1736286637091,-3482.99,0.00022465,3]
[348056846,1736286637100,-460.4070072,0.00022465,3]
[348056848,1736286637109,-500.0,0.00022738,3]
[348056850,1736286637118,-500.0,0.00022739,3]
[348056852,1736286637127,-500.0,0.00022739,3]
[348056854,1736286637136,-1392.48,0.00022739,3]
[348056856,1736286637146,-1483.26,0.00022739,3]
[348056858,1736286637155,-3482.99,0.00022739,3]
[348056860,1736286637164,-172.3222896,0.00022757,2]
[348056862,1736286637174,-151.0,0.000228,10]
[348056864,1736286637184,-151.0,0.000228,7]
[348056866,1736286637193,-302.93942119,0.00022872,10]
[348056868,1736286637202,-824.0,0.000229,2]
[348056870,1736286637211,-151.0,0.000229,9]
[348056872,1736286637220,-151.0,0.000229,10]
[348056874,1736286637230,-500.0,0.00022973,2]
[348056876,1736286637239,-303.34190258,0.00022977,2]
[348056878,1736286637248,-151.0,0.00022978,7]
[348056880,1736286637258,-151.0,0.00022978,7]
[348056882,1736286637267,-151.0,0.00022978,7]
[348056884,1736286637276,-151.0,0.00022978,7]
[348056886,1736286637286,-151.0,0.00022978,7]
[348056888,1736286637299,-151.0,0.00022978,7]
[348056890,1736286637308,-151.0,0.00022978,7]
[348056892,1736286637317,-195.026538,0.00022978,7]
[348056894,1736286637326,-10185.42580719,0.00022978,3]
[348056896,1736286637335,-3063.15408864,0.00022978,3]
[348056898,1736286637344,-335349.48852218,0.00022978,10]
[348056959,1736286637909,-1110.00000007,0.00022978,10]
[348056966,1736286637968,-1030.0,0.00022978,10]
[348056968,1736286637984,-3700.0,0.00022978,10]
[348057154,1736286639933,-44777.92732655,0.00022978,10]
[348057157,1736286639944,-9133.0,0.00022978,10]
[348057463,1736286643128,-2308027.30644882,0.00022978,10]
[348057465,1736286643140,-466.24133883,0.00022978,10]
[348057468,1736286643186,-2304.96715358,0.00022978,10]
[348057469,1736286643198,-21422.15148474,0.00022978,10]
[348057470,1736286643209,-9648.49999999,0.00022978,10]
[348057521,1736286646287,-500.0,0.00021916,2]
[348057522,1736286646301,-500.0,0.00021916,2]
[348057523,1736286646311,-214.55953265,0.00021916,2]
[348057524,1736286646321,-500.0,0.00021916,2]